[Event "Early-Titled-Tuesday-Blitz-January-23-2024"]
[Site "Chess.com"]
[Date "2024.01.23"]
[Round "5"]
[White "Alex_Sahakyan2006"]
[Black "shimastream"]
[Result "0-1"]
[WhiteElo "2715"]
[BlackElo "3020"]
[TimeControl "180+1"]
[EndTime "8:54:54 PST"]
[Termination "shimastream won on time"]

1. d4 {[%clk 0:03:00.9]} 1... Nf6 {[%clk 0:02:21.5]} 2. c4 {[%clk 0:03:00]} 2...
e6 {[%clk 0:02:16.5]} 3. Nf3 {[%clk 0:03:00]} 3... d5 {[%clk 0:02:13]} 4. Nc3
{[%clk 0:03:00.1]} 4... dxc4 {[%clk 0:02:10.8]} 5. e4 {[%clk 0:02:59.6]} 5... b5
{[%clk 0:02:10.8]} 6. Nxb5 {[%clk 0:02:58]} 6... Nxe4 {[%clk 0:02:08.6]} 7. Qa4
{[%clk 0:02:58.1]} 7... c6 {[%clk 0:02:01.4]} 8. Nc3 {[%clk 0:02:57.7]} 8... Nf6
{[%clk 0:01:58.6]} 9. Bxc4 {[%clk 0:02:55.2]} 9... Be7 {[%clk 0:01:58]} 10. Be3
{[%clk 0:02:48.3]} 10... O-O {[%clk 0:01:56.7]} 11. O-O {[%clk 0:02:48.1]} 11...
Nbd7 {[%clk 0:01:47.1]} 12. Qc2 {[%clk 0:02:41.8]} 12... Bb7 {[%clk 0:01:44.9]}
13. Ne5 {[%clk 0:02:15.4]} 13... Rc8 {[%clk 0:01:38.7]} 14. Rad1 {[%clk
0:02:06.6]} 14... Qc7 {[%clk 0:01:22.3]} 15. Rfe1 {[%clk 0:01:45.3]} 15... Nb6
{[%clk 0:01:15.7]} 16. Bd3 {[%clk 0:01:35.6]} 16... c5 {[%clk 0:01:12]} 17. Qb1
{[%clk 0:00:37.6]} 17... cxd4 {[%clk 0:01:00.6]} 18. Bxd4 {[%clk 0:00:37.8]}
18... Rfd8 {[%clk 0:01:01.1]} 19. Nb5 {[%clk 0:00:35.3]} 19... Qb8 {[%clk
0:01:00.9]} 20. Bc3 {[%clk 0:00:16.4]} 20... Nbd5 {[%clk 0:00:58.8]} 21. Ba5
{[%clk 0:00:16.4]} 21... Re8 {[%clk 0:00:54.7]} 22. Nd4 {[%clk 0:00:10]} 22...
Bc5 {[%clk 0:00:51.7]} 23. Nb3 {[%clk 0:00:06]} 23... Bd6 {[%clk 0:00:51.4]} 24.
Nf3 {[%clk 0:00:02.9]} 24... Nf4 {[%clk 0:00:51.6]} 25. Bf1 {[%clk 0:00:02]}
25... Bxf3 {[%clk 0:00:50.4]} 26. gxf3 {[%clk 0:00:02.7]} 26... Bb4 {[%clk
0:00:44.4]} 27. Bxb4 {[%clk 0:00:02.9]} 27... Qxb4 {[%clk 0:00:45.3]} 28. Rd4
{[%clk 0:00:03]} 28... Qb8 {[%clk 0:00:46]} 29. Qd1 {[%clk 0:00:02.4]} 29...
N6d5 {[%clk 0:00:41.7]} 30. a3 {[%clk 0:00:02.1]} 30... Qb7 {[%clk 0:00:30.5]}
31. Bc4 {[%clk 0:00:01.5]} 31... Qe7 {[%clk 0:00:23.4]} 32. Bxd5 {[%clk
0:00:01.7]} 32... Qg5+ {[%clk 0:00:23.4]} 0-1

[Event "Early-Titled-Tuesday-Blitz-January-23-2024"]
[Site "Chess.com"]
[Date "2024.01.23"]
[Round "5"]
[White "pfalcon1949"]
[Black "Tsyhanchuk_Stanislav"]
[Result "1-0"]
[WhiteElo "2026"]
[BlackElo "2273"]
[TimeControl "180+1"]
[EndTime "8:54:54 PST"]
[Termination "pfalcon1949 won by checkmate"]

1. e4 {[%clk 0:03:00.9]} 1... c5 {[%clk 0:02:58.1]} 2. Nf3 {[%clk 0:03:00.3]}
2... Nc6 {[%clk 0:02:52.3]} 3. d4 {[%clk 0:02:59.8]} 3... cxd4 {[%clk
0:02:53.2]} 4. Nxd4 {[%clk 0:02:59.4]} 4... Qb6 {[%clk 0:02:49.8]} 5. Nb5 {[%clk
0:02:45.2]} 5... a6 {[%clk 0:02:48.5]} 6. N5c3 {[%clk 0:02:43]} 6... Nf6 {[%clk
0:02:48.2]} 7. Bd3 {[%clk 0:02:43]} 7... e6 {[%clk 0:02:46]} 8. O-O {[%clk
0:02:43]} 8... Be7 {[%clk 0:02:46.3]} 9. Nd2 {[%clk 0:02:39.5]} 9... O-O {[%clk
0:02:43.8]} 10. Nc4 {[%clk 0:02:39.2]} 10... Qc7 {[%clk 0:02:44.4]} 11. Bg5
{[%clk 0:02:30.9]} 11... b5 {[%clk 0:02:42.9]} 12. Ne3 {[%clk 0:02:29.9]} 12...
Bb7 {[%clk 0:02:29.9]} 13. a3 {[%clk 0:02:27.9]} 13... d6 {[%clk 0:02:22.7]} 14.
Kh1 {[%clk 0:02:27.6]} 14... Rad8 {[%clk 0:02:11.8]} 15. f4 {[%clk 0:02:26.2]}
15... b4 {[%clk 0:02:04.2]} 16. axb4 {[%clk 0:02:20]} 16... Nxb4 {[%clk
0:02:05.1]} 17. Qe1 {[%clk 0:02:11.5]} 17... d5 {[%clk 0:01:52.1]} 18. e5 {[%clk
0:02:06.4]} 18... Ne4 {[%clk 0:01:48]} 19. Bxe7 {[%clk 0:02:00.8]} 19... Qxe7
{[%clk 0:01:46]} 20. Bxe4 {[%clk 0:01:53.9]} 20... dxe4 {[%clk 0:01:43.3]} 21.
Qg3 {[%clk 0:01:46.2]} 21... f5 {[%clk 0:01:16.4]} 22. exf6 {[%clk 0:01:41.5]}
22... Qxf6 {[%clk 0:01:16.4]} 23. f5 {[%clk 0:01:35.1]} 23... exf5 {[%clk
0:00:57.1]} 24. Rxf5 {[%clk 0:01:30.4]} 24... Qd6 {[%clk 0:00:45]} 25. Rxf8+
{[%clk 0:01:16.1]} 25... Qxf8 {[%clk 0:00:43.7]} 26. Rf1 {[%clk 0:01:12.4]}
26... Qc5 {[%clk 0:00:34.3]} 27. Qh3 {[%clk 0:01:05.6]} 27... Bc8 {[%clk
0:00:31.4]} 28. Qg3 {[%clk 0:00:59.2]} 28... Re8 {[%clk 0:00:17.2]} 29. h3
{[%clk 0:00:52.4]} 29... Nc6 {[%clk 0:00:13]} 30. Ncd5 {[%clk 0:00:49.1]} 30...
Kh8 {[%clk 0:00:04.3]} 31. Rf7 {[%clk 0:00:46]} 31... Qd4 {[%clk 0:00:03.4]} 32.
Nf6 {[%clk 0:00:35.2]} 32... Rg8 {[%clk 0:00:02.3]} 33. Qh4 {[%clk 0:00:26.7]}
33... h6 {[%clk 0:00:01.2]} 34. Qxh6+ {[%clk 0:00:24.4]} 34... gxh6 {[%clk
0:00:02.1]} 35. Rh7# {[%clk 0:00:24.2]} 1-0

[Event "Early-Titled-Tuesday-Blitz-January-23-2024"]
[Site "Chess.com"]
[Date "2024.01.23"]
[Round "5"]
[White "Aash20"]
[Black "ScofieldMichael01"]
[Result "1-0"]
[WhiteElo "2502"]
[BlackElo "2605"]
[TimeControl "180+1"]
[EndTime "8:54:55 PST"]
[Termination "Aash20 won by checkmate"]

1. e4 {[%clk 0:03:00.9]} 1... e6 {[%clk 0:02:58.7]} 2. d4 {[%clk 0:02:59]} 2...
d5 {[%clk 0:02:59.4]} 3. Nd2 {[%clk 0:02:59.2]} 3... Nf6 {[%clk 0:02:59.2]} 4.
e5 {[%clk 0:02:59.4]} 4... Nfd7 {[%clk 0:02:59.9]} 5. Bd3 {[%clk 0:02:59.3]}
5... c5 {[%clk 0:03:00.8]} 6. c3 {[%clk 0:02:58.7]} 6... Nc6 {[%clk 0:03:01.3]}
7. Ngf3 {[%clk 0:02:57.9]} 7... cxd4 {[%clk 0:02:59.6]} 8. cxd4 {[%clk
0:02:57.5]} 8... Qb6 {[%clk 0:02:54.9]} 9. O-O {[%clk 0:02:56.7]} 9... Nxd4
{[%clk 0:02:54.6]} 10. Nxd4 {[%clk 0:02:56.2]} 10... Qxd4 {[%clk 0:02:55.5]} 11.
Nf3 {[%clk 0:02:56.4]} 11... Qb4 {[%clk 0:02:52.6]} 12. a3 {[%clk 0:02:56]}
12... Qb6 {[%clk 0:02:42]} 13. Qa4 {[%clk 0:02:54.2]} 13... Be7 {[%clk
0:02:36.5]} 14. Qg4 {[%clk 0:02:52.2]} 14... g6 {[%clk 0:02:30.4]} 15. b4 {[%clk
0:02:49.4]} 15... Qc7 {[%clk 0:02:20.8]} 16. Bb2 {[%clk 0:02:47.1]} 16... Nb6
{[%clk 0:02:17.2]} 17. Rac1 {[%clk 0:02:46.2]} 17... Qd8 {[%clk 0:02:14.3]} 18.
Rc2 {[%clk 0:02:30.8]} 18... Bd7 {[%clk 0:02:11.5]} 19. Rfc1 {[%clk 0:02:29.8]}
19... O-O {[%clk 0:01:59.6]} 20. Bd4 {[%clk 0:02:20.5]} 20... Nc4 {[%clk
0:01:44.9]} 21. Bxc4 {[%clk 0:02:17.5]} 21... dxc4 {[%clk 0:01:45.8]} 22. Rxc4
{[%clk 0:02:17.4]} 22... Bc6 {[%clk 0:01:46.1]} 23. Be3 {[%clk 0:02:09.9]} 23...
Bd5 {[%clk 0:01:43.1]} 24. Rc7 {[%clk 0:02:07.4]} 24... Bc6 {[%clk 0:01:36]} 25.
Rxe7 {[%clk 0:02:06.8]} 25... Qxe7 {[%clk 0:01:36.9]} 26. Bc5 {[%clk 0:02:03]}
26... Qd7 {[%clk 0:01:36.9]} 27. Bxf8 {[%clk 0:02:01.5]} 27... Rxf8 {[%clk
0:01:37.8]} 28. Qd4 {[%clk 0:01:59.7]} 28... Rd8 {[%clk 0:01:34.6]} 29. Rd1
{[%clk 0:01:56.2]} 29... Qd5 {[%clk 0:01:20.8]} 30. Qxd5 {[%clk 0:01:55.4]}
30... Bxd5 {[%clk 0:01:21.7]} 31. Nd4 {[%clk 0:01:50.2]} 31... Rc8 {[%clk
0:01:17]} 32. f3 {[%clk 0:01:46.4]} 32... a6 {[%clk 0:01:14.3]} 33. Rd3 {[%clk
0:01:43.6]} 33... Rc1+ {[%clk 0:01:05.7]} 34. Kf2 {[%clk 0:01:42.7]} 34... Ra1
{[%clk 0:01:06.3]} 35. Rc3 {[%clk 0:01:38.6]} 35... Ra2+ {[%clk 0:01:06.4]} 36.
Kg3 {[%clk 0:01:32.9]} 36... Kg7 {[%clk 0:01:06.7]} 37. b5 {[%clk 0:01:24.5]}
37... a5 {[%clk 0:01:00.1]} 38. h4 {[%clk 0:01:17.3]} 38... a4 {[%clk 0:01:00]}
39. h5 {[%clk 0:01:09.8]} 39... Rd2 {[%clk 0:00:59.6]} 40. Nc2 {[%clk
0:01:06.4]} 40... Bb3 {[%clk 0:00:56.2]} 41. Ne3 {[%clk 0:00:59]} 41... Ra2
{[%clk 0:00:53.5]} 42. Ng4 {[%clk 0:00:53.8]} 42... gxh5 {[%clk 0:00:53]} 43.
Nf6 {[%clk 0:00:53.4]} 43... Rxa3 {[%clk 0:00:52.5]} 44. Rc8 {[%clk 0:00:51.6]}
44... Ra1 {[%clk 0:00:40.9]} 45. Rg8+ {[%clk 0:00:44.1]} 45... Kh6 {[%clk
0:00:41]} 46. Kf4 {[%clk 0:00:43.4]} 46... h4 {[%clk 0:00:30.6]} 47. Rg5 {[%clk
0:00:42]} 47... Bc2 {[%clk 0:00:27.4]} 48. Ng8# {[%clk 0:00:41.7]} 1-0

[Event "Early-Titled-Tuesday-Blitz-January-23-2024"]
[Site "Chess.com"]
[Date "2024.01.23"]
[Round "5"]
[White "Denis_Makhnyov"]
[Black "kingofthenil"]
[Result "1-0"]
[WhiteElo "3028"]
[BlackElo "2685"]
[TimeControl "180+1"]
[EndTime "8:54:58 PST"]
[Termination "Denis_Makhnyov won on time"]

1. d4 {[%clk 0:02:55.6]} 1... d6 {[%clk 0:02:59.5]} 2. c4 {[%clk 0:02:56.4]}
2... e5 {[%clk 0:02:59.7]} 3. Nf3 {[%clk 0:02:56.4]} 3... e4 {[%clk 0:02:59.2]}
4. Ng5 {[%clk 0:02:56.9]} 4... f5 {[%clk 0:02:57.5]} 5. Nc3 {[%clk 0:02:57.3]}
5... Be7 {[%clk 0:02:55.9]} 6. Nh3 {[%clk 0:02:56.5]} 6... Nf6 {[%clk
0:02:53.7]} 7. g3 {[%clk 0:02:55.8]} 7... c6 {[%clk 0:02:39.5]} 8. Bg2 {[%clk
0:02:53.9]} 8... O-O {[%clk 0:02:36.7]} 9. O-O {[%clk 0:02:53.9]} 9... Na6
{[%clk 0:02:36.1]} 10. a3 {[%clk 0:02:49.1]} 10... Nc7 {[%clk 0:02:28.9]} 11. d5
{[%clk 0:02:39.9]} 11... Ng4 {[%clk 0:02:22.2]} 12. f3 {[%clk 0:02:34.7]} 12...
exf3 {[%clk 0:02:18.6]} 13. exf3 {[%clk 0:02:34.8]} 13... Ne5 {[%clk 0:02:19.2]}
14. f4 {[%clk 0:02:28.9]} 14... Nxc4 {[%clk 0:02:18.5]} 15. dxc6 {[%clk
0:02:29.5]} 15... bxc6 {[%clk 0:02:11.8]} 16. Bxc6 {[%clk 0:02:29.8]} 16... Ba6
{[%clk 0:02:05.4]} 17. Re1 {[%clk 0:02:03.3]} 17... Bf6 {[%clk 0:02:04.3]} 18.
Nd5 {[%clk 0:01:39.1]} 18... Rb8 {[%clk 0:01:51.7]} 19. Qa4 {[%clk 0:01:31.6]}
19... Nb6 {[%clk 0:00:18]} 20. Nxb6 {[%clk 0:00:27.2]} 20... Rxb6 {[%clk
0:00:18.9]} 21. Be3 {[%clk 0:00:27.8]} 21... Rxb2 {[%clk 0:00:13.8]} 22. Bxa7
{[%clk 0:00:28.2]} 22... Kh8 {[%clk 0:00:11.2]} 23. Bd4 {[%clk 0:00:20.3]} 23...
Bb5 {[%clk 0:00:06.3]} 24. Bxb5 {[%clk 0:00:19.8]} 24... Nxb5 {[%clk 0:00:07.2]}
25. Bxb2 {[%clk 0:00:17.9]} 25... Qb6+ {[%clk 0:00:06]} 26. Nf2 {[%clk
0:00:13.3]} 26... Bxb2 {[%clk 0:00:06.9]} 27. Rab1 {[%clk 0:00:13.4]} 27... Nc3
{[%clk 0:00:07.2]} 28. Re8 {[%clk 0:00:10.2]} 1-0

[Event "Early-Titled-Tuesday-Blitz-January-23-2024"]
[Site "Chess.com"]
[Date "2024.01.23"]
[Round "5"]
[White "EdmundPlayer"]
[Black "Eloist"]
[Result "1-0"]
[WhiteElo "2265"]
[BlackElo "2417"]
[TimeControl "180+1"]
[EndTime "8:55:01 PST"]
[Termination "EdmundPlayer won on time"]

1. Nc3 {[%clk 0:03:00.9]} 1... d5 {[%clk 0:02:59]} 2. e4 {[%clk 0:03:01.1]} 2...
d4 {[%clk 0:02:56.1]} 3. Nce2 {[%clk 0:03:00.9]} 3... e5 {[%clk 0:02:51.8]} 4.
Ng3 {[%clk 0:03:00.8]} 4... Nd7 {[%clk 0:02:35]} 5. Bc4 {[%clk 0:02:59.6]} 5...
Nb6 {[%clk 0:02:29.5]} 6. Bb3 {[%clk 0:02:58.1]} 6... c5 {[%clk 0:02:27.5]} 7.
d3 {[%clk 0:02:57.4]} 7... Qc7 {[%clk 0:02:22.1]} 8. N1e2 {[%clk 0:02:35.1]}
8... c4 {[%clk 0:02:14.7]} 9. dxc4 {[%clk 0:02:34.3]} 9... Nxc4 {[%clk
0:02:09.1]} 10. O-O {[%clk 0:02:33.9]} 10... Nf6 {[%clk 0:02:02.5]} 11. f4
{[%clk 0:02:33.1]} 11... Bg4 {[%clk 0:01:19.5]} 12. Qd3 {[%clk 0:02:16.2]} 12...
Rc8 {[%clk 0:01:04.6]} 13. Bxc4 {[%clk 0:01:49]} 13... Qxc4 {[%clk 0:01:05.5]}
14. fxe5 {[%clk 0:01:49.2]} 14... Qxd3 {[%clk 0:00:51.4]} 15. cxd3 {[%clk
0:01:48.8]} 15... Nd7 {[%clk 0:00:51]} 16. e6 {[%clk 0:01:18.7]} 16... fxe6
{[%clk 0:00:41.3]} 17. Nxd4 {[%clk 0:00:46.4]} 17... Bc5 {[%clk 0:00:28.2]} 18.
Be3 {[%clk 0:00:45.5]} 18... Bb6 {[%clk 0:00:13.3]} 19. h3 {[%clk 0:00:44.2]}
19... e5 {[%clk 0:00:10.7]} 20. Ndf5 {[%clk 0:00:39.3]} 20... Bxf5 {[%clk
0:00:09.3]} 21. Bxb6 {[%clk 0:00:34.2]} 21... Bg6 {[%clk 0:00:06.7]} 22. Be3
{[%clk 0:00:28.3]} 22... Rc2 {[%clk 0:00:06.4]} 23. Rac1 {[%clk 0:00:26.8]}
23... Rxc1 {[%clk 0:00:04.8]} 24. Rxc1 {[%clk 0:00:27.7]} 24... O-O {[%clk
0:00:04.6]} 25. Rc7 {[%clk 0:00:26.5]} 25... Nb8 {[%clk 0:00:02.6]} 26. Bxa7
{[%clk 0:00:26.1]} 26... Nc6 {[%clk 0:00:02.3]} 27. Bc5 {[%clk 0:00:25]} 27...
Rd8 {[%clk 0:00:02.2]} 28. Rxb7 {[%clk 0:00:19.5]} 28... Rxd3 {[%clk 0:00:01.7]}
29. Kh2 {[%clk 0:00:14.8]} 29... Rd2 {[%clk 0:00:01.7]} 30. a4 {[%clk
0:00:14.2]} 30... h5 {[%clk 0:00:01.8]} 31. a5 {[%clk 0:00:13.3]} 31... h4
{[%clk 0:00:02]} 32. Nf5 {[%clk 0:00:13.3]} 1-0

[Event "Early-Titled-Tuesday-Blitz-January-23-2024"]
[Site "Chess.com"]
[Date "2024.01.23"]
[Round "5"]
[White "martinmena"]
[Black "Chessdude1987"]
[Result "0-1"]
[WhiteElo "2065"]
[BlackElo "2277"]
[TimeControl "180+1"]
[EndTime "8:55:01 PST"]
[Termination "Chessdude1987 won on time"]

1. c4 {[%clk 0:03:00.9]} 1... g6 {[%clk 0:01:59.6]} 2. g3 {[%clk 0:02:48.7]}
2... Bg7 {[%clk 0:02:00.5]} 3. Bg2 {[%clk 0:02:48.5]} 3... d6 {[%clk 0:02:01.2]}
4. Nc3 {[%clk 0:02:48.4]} 4... Nf6 {[%clk 0:02:02.1]} 5. d3 {[%clk 0:02:47.5]}
5... O-O {[%clk 0:02:02.5]} 6. Bg5 {[%clk 0:02:47]} 6... e5 {[%clk 0:02:03.4]}
7. Qd2 {[%clk 0:02:47.1]} 7... c5 {[%clk 0:02:01.2]} 8. e4 {[%clk 0:02:47.3]}
8... Nc6 {[%clk 0:02:01.3]} 9. Nge2 {[%clk 0:02:47.5]} 9... Re8 {[%clk
0:02:01.5]} 10. O-O {[%clk 0:02:40.7]} 10... Nd4 {[%clk 0:02:01.5]} 11. Nxd4
{[%clk 0:02:39.7]} 11... cxd4 {[%clk 0:02:00.2]} 12. Nd5 {[%clk 0:02:40.3]}
12... Be6 {[%clk 0:01:57.8]} 13. f4 {[%clk 0:02:18.8]} 13... Bxd5 {[%clk
0:01:53.1]} 14. exd5 {[%clk 0:02:18.2]} 14... h6 {[%clk 0:01:44.2]} 15. fxe5
{[%clk 0:02:05.2]} 15... hxg5 {[%clk 0:01:44.1]} 16. exf6 {[%clk 0:02:04.1]}
16... Bxf6 {[%clk 0:01:44.3]} 17. Qf2 {[%clk 0:01:56.7]} 17... Kg7 {[%clk
0:01:42.6]} 18. Rae1 {[%clk 0:01:52.2]} 18... Rxe1 {[%clk 0:01:41.7]} 19. Rxe1
{[%clk 0:01:51.6]} 19... g4 {[%clk 0:01:41.6]} 20. Qf4 {[%clk 0:01:42]} 20...
Qd7 {[%clk 0:01:39.2]} 21. Rf1 {[%clk 0:01:41.1]} 21... Be5 {[%clk 0:01:38.4]}
22. Qf2 {[%clk 0:01:29.9]} 22... f5 {[%clk 0:01:38.3]} 23. Re1 {[%clk
0:01:08.6]} 23... Rh8 {[%clk 0:01:37.9]} 24. c5 {[%clk 0:01:07.1]} 24... Kf6
{[%clk 0:01:27.8]} 25. c6 {[%clk 0:01:05.5]} 25... Qh7 {[%clk 0:01:24.2]} 26.
Bh1 {[%clk 0:01:00]} 26... Qc7 {[%clk 0:01:21.8]} 27. b4 {[%clk 0:00:50.7]}
27... b5 {[%clk 0:01:15]} 28. Qb2 {[%clk 0:00:37.1]} 28... Rh3 {[%clk
0:01:14.3]} 29. Bg2 {[%clk 0:00:32]} 29... Rh7 {[%clk 0:01:09.3]} 30. a4 {[%clk
0:00:23]} 30... bxa4 {[%clk 0:01:07.9]} 31. Ra1 {[%clk 0:00:23.1]} 31... a5
{[%clk 0:00:59.4]} 32. b5 {[%clk 0:00:22.4]} 32... Qe7 {[%clk 0:00:56.8]} 33.
Rxa4 {[%clk 0:00:20.3]} 33... Bxg3 {[%clk 0:00:56.2]} 34. hxg3 {[%clk
0:00:18.3]} 34... Qe1+ {[%clk 0:00:55.8]} 35. Bf1 {[%clk 0:00:19]} 35... Qxg3+
{[%clk 0:00:52.9]} 36. Qg2 {[%clk 0:00:19]} 36... Qe3+ {[%clk 0:00:52.9]} 37.
Qf2 {[%clk 0:00:19.3]} 37... Qe5 {[%clk 0:00:47.2]} 38. Bg2 {[%clk 0:00:08.1]}
38... Kg5 {[%clk 0:00:44.2]} 39. Rxd4 {[%clk 0:00:02.9]} 39... g3 {[%clk
0:00:43]} 40. Qd2+ {[%clk 0:00:02.5]} 40... f4 {[%clk 0:00:42.5]} 41. Rxf4
{[%clk 0:00:01.3]} 41... Qxf4 {[%clk 0:00:39.5]} 0-1

[Event "Early-Titled-Tuesday-Blitz-January-23-2024"]
[Site "Chess.com"]
[Date "2024.01.23"]
[Round "5"]
[White "GMAkobianSTL"]
[Black "KevinGeorgeMicheal"]
[Result "1-0"]
[WhiteElo "2758"]
[BlackElo "2343"]
[TimeControl "180+1"]
[EndTime "8:55:02 PST"]
[Termination "GMAkobianSTL won by resignation"]

1. d4 {[%clk 0:03:00.9]} 1... Nf6 {[%clk 0:02:59]} 2. c4 {[%clk 0:03:00.8]} 2...
e6 {[%clk 0:02:57]} 3. Nf3 {[%clk 0:03:00.3]} 3... d5 {[%clk 0:02:51.2]} 4. cxd5
{[%clk 0:02:59.4]} 4... exd5 {[%clk 0:02:50.9]} 5. Nc3 {[%clk 0:02:59.5]} 5...
Be7 {[%clk 0:02:48.7]} 6. Bg5 {[%clk 0:02:59.1]} 6... c6 {[%clk 0:02:47.8]} 7.
Qc2 {[%clk 0:02:58.3]} 7... O-O {[%clk 0:02:47.3]} 8. e3 {[%clk 0:02:58.2]} 8...
Nbd7 {[%clk 0:02:47]} 9. Bd3 {[%clk 0:02:58]} 9... Re8 {[%clk 0:02:47.2]} 10.
O-O {[%clk 0:02:58.2]} 10... Nf8 {[%clk 0:02:46.5]} 11. Rab1 {[%clk 0:02:58]}
11... a5 {[%clk 0:02:46]} 12. a3 {[%clk 0:02:57.9]} 12... Ne4 {[%clk 0:02:43.6]}
13. Bxe7 {[%clk 0:02:57.1]} 13... Qxe7 {[%clk 0:02:43]} 14. b4 {[%clk 0:02:57]}
14... axb4 {[%clk 0:02:41.4]} 15. axb4 {[%clk 0:02:57]} 15... Bg4 {[%clk
0:02:36.8]} 16. Ne5 {[%clk 0:02:55.8]} 16... Bf5 {[%clk 0:02:29.7]} 17. Nxe4
{[%clk 0:02:54.9]} 17... dxe4 {[%clk 0:02:25.9]} 18. Bc4 {[%clk 0:02:53.5]}
18... Be6 {[%clk 0:02:25]} 19. Bxe6 {[%clk 0:02:46.3]} 19... Qxe6 {[%clk
0:02:24.4]} 20. b5 {[%clk 0:02:46]} 20... f6 {[%clk 0:01:55.1]} 21. Nc4 {[%clk
0:02:44.3]} 21... cxb5 {[%clk 0:01:40]} 22. Nd2 {[%clk 0:02:34]} 22... Ra2
{[%clk 0:01:28.7]} 23. Rb2 {[%clk 0:02:32.9]} 23... Rc8 {[%clk 0:01:17.5]} 24.
Rxa2 {[%clk 0:02:29.7]} 24... Rxc2 {[%clk 0:01:16.2]} 25. Rxc2 {[%clk
0:02:29.8]} 25... f5 {[%clk 0:01:10.4]} 26. g3 {[%clk 0:01:55.8]} 26... Qd5
{[%clk 0:00:31.7]} 27. Ra1 {[%clk 0:01:43.1]} 27... Ne6 {[%clk 0:00:24.2]} 28.
Rb2 {[%clk 0:01:32.9]} 28... Kf7 {[%clk 0:00:19.6]} 29. Rab1 {[%clk 0:01:32.2]}
29... Nc7 {[%clk 0:00:19.3]} 30. Rc1 {[%clk 0:01:28.9]} 30... Ne6 {[%clk
0:00:18.7]} 31. Nb1 {[%clk 0:01:21.9]} 31... Kg6 {[%clk 0:00:15.2]} 32. Nc3
{[%clk 0:01:19.5]} 32... Qc4 {[%clk 0:00:14.7]} 33. Ne2 {[%clk 0:01:14.3]} 33...
Qd5 {[%clk 0:00:12.8]} 34. Rc5 {[%clk 0:01:12.4]} 34... Qd7 {[%clk 0:00:09.1]}
35. Rcxb5 {[%clk 0:01:12.1]} 35... Kf6 {[%clk 0:00:07]} 36. Rb6 {[%clk
0:01:11.1]} 36... Kg5 {[%clk 0:00:03.4]} 37. Kg2 {[%clk 0:01:08.6]} 37... Qd5
{[%clk 0:00:02.8]} 38. Rxe6 {[%clk 0:01:07.9]} 38... Qxe6 {[%clk 0:00:02.5]} 39.
Rxb7 {[%clk 0:01:05.5]} 39... Kf6 {[%clk 0:00:01.2]} 40. h4 {[%clk 0:01:02.1]}
40... Qd6 {[%clk 0:00:01.5]} 41. Nf4 {[%clk 0:01:00.9]} 41... h6 {[%clk
0:00:01.7]} 42. h5 {[%clk 0:00:59]} 42... Kg5 {[%clk 0:00:01.1]} 43. Rxg7+
{[%clk 0:00:57.8]} 43... Kf6 {[%clk 0:00:01.1]} 44. Rg6+ {[%clk 0:00:58.2]}
44... Ke7 {[%clk 0:00:01.6]} 45. Rxd6 {[%clk 0:00:58.2]} 45... Kxd6 {[%clk
0:00:02.2]} 46. f3 {[%clk 0:00:58.5]} 1-0

[Event "Early-Titled-Tuesday-Blitz-January-23-2024"]
[Site "Chess.com"]
[Date "2024.01.23"]
[Round "5"]
[White "Zallio"]
[Black "Slovineanu"]
[Result "0-1"]
[WhiteElo "2181"]
[BlackElo "2402"]
[TimeControl "180+1"]
[EndTime "8:55:02 PST"]
[Termination "Slovineanu won by resignation"]

1. e4 {[%clk 0:03:00.9]} 1... e5 {[%clk 0:02:59.2]} 2. Nf3 {[%clk 0:03:00.7]}
2... Nc6 {[%clk 0:02:59.4]} 3. Bc4 {[%clk 0:03:01.1]} 3... Nf6 {[%clk 0:02:59]}
4. d3 {[%clk 0:03:00.9]} 4... Be7 {[%clk 0:02:58]} 5. O-O {[%clk 0:03:00.4]}
5... O-O {[%clk 0:02:58.5]} 6. c3 {[%clk 0:03:00.1]} 6... d6 {[%clk 0:02:58.4]}
7. h3 {[%clk 0:02:59.7]} 7... Na5 {[%clk 0:02:58]} 8. Bb5 {[%clk 0:02:59]} 8...
a6 {[%clk 0:02:58.2]} 9. Ba4 {[%clk 0:02:59.6]} 9... b5 {[%clk 0:02:58.8]} 10.
Bc2 {[%clk 0:03:00.1]} 10... c5 {[%clk 0:02:59.4]} 11. a4 {[%clk 0:02:59.5]}
11... b4 {[%clk 0:02:55.8]} 12. Nbd2 {[%clk 0:02:51.7]} 12... Rb8 {[%clk
0:02:50.9]} 13. Re1 {[%clk 0:02:38.9]} 13... Re8 {[%clk 0:02:47.9]} 14. cxb4
{[%clk 0:02:28.5]} 14... Rxb4 {[%clk 0:02:40.9]} 15. Nf1 {[%clk 0:02:21]} 15...
Nc6 {[%clk 0:02:40.3]} 16. Ne3 {[%clk 0:02:13.1]} 16... Be6 {[%clk 0:02:30.1]}
17. b3 {[%clk 0:02:10]} 17... Nd4 {[%clk 0:02:16]} 18. Nxd4 {[%clk 0:02:04.1]}
18... cxd4 {[%clk 0:02:15.3]} 19. Nc4 {[%clk 0:02:03.7]} 19... Bxc4 {[%clk
0:02:08]} 20. dxc4 {[%clk 0:01:57.2]} 20... a5 {[%clk 0:02:03.3]} 21. f4 {[%clk
0:01:52.3]} 21... Nd7 {[%clk 0:02:00.1]} 22. f5 {[%clk 0:01:51.8]} 22... Bg5
{[%clk 0:01:58.5]} 23. Ba3 {[%clk 0:01:50.3]} 23... Qb6 {[%clk 0:01:51.8]} 24.
Rb1 {[%clk 0:01:37.8]} 24... Nc5 {[%clk 0:01:41]} 25. Bxb4 {[%clk 0:01:31.9]}
25... Qxb4 {[%clk 0:01:40.5]} 26. Qf3 {[%clk 0:01:23]} 26... Rb8 {[%clk
0:01:35.1]} 27. Rbd1 {[%clk 0:01:19.2]} 27... Nxb3 {[%clk 0:01:26.2]} 28. Bxb3
{[%clk 0:01:11]} 28... Qxb3 {[%clk 0:01:25]} 29. Rb1 {[%clk 0:01:10.8]} 29...
Qxb1 {[%clk 0:01:20.8]} 30. Rxb1 {[%clk 0:01:09.7]} 30... Rxb1+ {[%clk
0:01:21.2]} 31. Kf2 {[%clk 0:01:01.3]} 31... Be3+ {[%clk 0:01:15.6]} 32. Ke2
{[%clk 0:01:00.4]} 32... Rb2+ {[%clk 0:01:12.8]} 33. Ke1 {[%clk 0:00:59.9]}
33... Rb1+ {[%clk 0:01:11.7]} 34. Ke2 {[%clk 0:00:59.9]} 34... Rb4 {[%clk
0:00:58.4]} 35. f6 {[%clk 0:00:55.8]} 35... Rxc4 {[%clk 0:00:41.8]} 36. Qg4
{[%clk 0:00:49.7]} 36... Bh6 {[%clk 0:00:40.2]} 37. fxg7 {[%clk 0:00:41.6]}
37... Rc2+ {[%clk 0:00:36.8]} 38. Kd3 {[%clk 0:00:39.2]} 38... Rc3+ {[%clk
0:00:36]} 39. Ke2 {[%clk 0:00:38.1]} 39... d3+ {[%clk 0:00:36.4]} 40. Kf2 {[%clk
0:00:17]} 40... d2 {[%clk 0:00:29.9]} 0-1